Cogmind - Beta 15 @@@ ROGUE MODE // 2025.06.09 @ 21:52:18 Player: Struisvogel Result: Self-destructed Performance ------------- Evolutions (2) 1000 Regions Visited (3) 600 Robots Destroyed (6) 30 Value Destroyed (60) 60 Prototype IDs (0) 0 Alien Tech Used (0) 0 Bonus (0) 0 TOTAL SCORE: 1690 Bonus ------- None Cogmind --------- Core Integrity 436/550 Matter 300/300 Energy 100/100 System Corruption 0% Temperature Cool (0) Movement Core (100) Ox1 Location -8/Materials Parts ------- > --- POWER (1) -------- (None) > --- PROPULSION (4) --- (None) > --- UTILITY (4) ------ Small Storage Unit Visual Processing Unit Terrain Scan Processor > --- WEAPON (2) ------- (None) > --- INVENTORY (8) ---- Ion Engine Ion Engine Aluminum Leg Aluminum Leg Small Storage Unit ECM Suite Medium Armor Plating Peak State ------------ > --- POWER ------------ Light Ion Engine > --- PROPULSION ------- Flight Unit Flight Unit Flight Unit > --- UTILITY ---------- Small Storage Unit Visual Processing Unit Terrain Scan Processor ECM Suite > --- WEAPON ----------- (None) > --- INVENTORY -------- Ion Engine Ion Engine Aluminum Leg Aluminum Leg Small Storage Unit Medium Armor Plating [Rating: 10] Favorites ----------- Power Light Ion Engine Engine Light Ion Engine Propulsion Flight Unit Treads Light Treads Leg Aluminum Leg Flight Unit Flight Unit Utility Small Storage Unit Device ECM Suite Storage Small Storage Unit Processor Visual Processing Unit Weapon Small Laser Energy Gun Small Laser Build | -11 -10 -9 -8 ------- Run | Yrd Mat Mat Mat Slots Evolved 4 | . . 2 2 Power . | . . . . Propulsion 2 | . . 1 1 Utility 2 | . . 1 1 Weapon . | . . . . Parts Attached 18 | 6 9 1 2 Power 2 | 1 1 . . Engine 2 | 1 1 . . Core . | . . . . Reactor . | . . . . Propulsion 7 | 2 5 . . Treads 2 | . 2 . . Leg 2 | 2 . . . Wheel . | . . . . Hover . | . . . . Flight 3 | . 3 . . Utility 6 | 1 2 1 2 Device 2 | . 1 1 . Storage 2 | 1 1 . . Processor 2 | . . . 2 Hackware . | . . . . Protection . | . . . . Artifact . | . . . . Weapon 3 | 2 1 . . Energy Gun 3 | 2 1 . . Energy Cannon . | . . . . Ballistic Gun . | . . . . Ballistic Cannon . | . . . . Launcher . | . . . . Special Weapon . | . . . . Impact Weapon . | . . . . Slashing Weapon . | . . . . Piercing Weapon . | . . . . Special Melee Weapon . | . . . . Unidentified Prototypes . | . . . . Parts Lost 4 | . . . 4 Power 1 | . . . 1 Propulsion 3 | . . . 3 Utility . | . . . . Weapon . | . . . . Highest Loss Streak 4 | . . . 4 To Critical Strikes . | . . . . Average Backups 5 | 1 6 6 6 Power 1 | . 1 2 2 Propulsion 2 | . 3 3 2 Utility . | . . 1 2 Weapon . | . . . . Tool/Special . | . . . . Unused Backups 2 | . . . 2 Power 1 | . . . 1 Propulsion . | . . . . Utility 1 | . . . 1 Weapon . | . . . . Tool/Special . | . . . . Average Slot Usage (%) 63 | . 68 55 60 Engine 12 | . 14 11 9 Treads 1 | . 2 . . Leg 3 | . 6 . . Flight 22 | . 17 33 22 Device 1 | . . . 6 Storage 13 | . 16 11 9 Processor 1 | . . . 13 Energy Gun 6 | . 10 . . Peak Build Rating 10 | 6 7 6 10 Average Rating 5 | 4 4 5 8 On Entrance 4 | . 6 4 6 Naked Turns . | . . . . Heaviest Build 18 | 13 18 10 10 Greatest Support 40 | 20 40 12 12 Greatest Overweight (x) 5 | . 5 . 1 Average Overweight (x) . | . . . . Largest Inventory Capacity 8 | 8 8 8 8 Average Capacity 7 | 7 8 8 8 Most Carried 8 | 4 8 8 7 Average Carried 6 | 1 6 6 6 Final Capacity 8 | 8 8 8 8 Final Carried 8 | 4 8 6 7 Class Distribution -------------------- 60% | Mutant 39% | Scavenger-Mutant Dominant Class ---------------- Mutant | -10/Materials Scavenger-Mutant | -9/Materials Mutant | -8/Materials Resources | -11 -10 -9 -8 ----------- Run | Yrd Mat Mat Mat Matter Collected 367 | 222 59 86 . Remotely . | . . . . Salvage Created 72 | . 72 . . Parts 11 | . 11 . . Haulers Intercepted . | . . . . Recyclers Shooed . | . . . . Parts Field Recycled . | . . . . Retrieved Matter . | . . . . Parts Self-Destructed . | . . . . Prevented . | . . . . Kills | -11 -10 -9 -8 ------- Run | Yrd Mat Mat Mat Combat Hostiles Destroyed 6 | . 6 . . Guns 3 | . 3 . . AOE 3 | . 3 . . Classes Destroyed 1 | . 1 . . Swarmer 6 | . 6 . . Best Kill Streak 3 | . 3 . . Combat Bots Only 3 | . 3 . . Max Kills in Single Turn 3 | . 3 . . Gunslinging . | . . . . Exploded 3 | . 3 . . Melee . | . . . . Uniques/NPCs Destroyed . | . . . . Combat | -11 -10 -9 -8 -------- Run | Yrd Mat Mat Mat Hostile Shots Fired 75 | . 36 3 36 Missed 22 | . 7 2 13 Hits 53 | . 29 1 23 Projectile 53 | . 29 1 23 Damage Taken 466 | . 240 10 216 Core 173 | . 59 . 114 Absorbed by Shields . | . . . . Core Remaining (%) 92 | 100 76 100 . Volleys Fired 13 | . 13 . . Largest 2 | . 2 . . Hottest 80 | . 80 . . Shots Fired 20 | . 20 . . Gun 20 | . 20 . . Cannon . | . . . . Launcher . | . . . . Special . | . . . . Kinetic . | . . . . Thermal 13 | . 13 . . Explosive . | . . . . Electromagnetic 7 | . 7 . . Robot Hit Streak 4 | . 4 . . Robot Miss Streak 9 | . 9 . . Penetration Max . | . . . . Secondary Targets . | . . . . Shots Hit Robots 6 | . 6 . . Core Hits 6 | . 6 . . Critical Kills . | . . . . Critical Parts Destroyed . | . . . . Critical Strikes . | . . . . Melee Attacks . | . . . . Impact . | . . . . Slashing . | . . . . Piercing . | . . . . Sneak Attacks . | . . . . Combat Hostiles . | . . . . Follow-up Attacks . | . . . . Damage Inflicted 221 | . 211 . 10 Guns 86 | . 86 . . Cannons . | . . . . Explosions 119 | . 119 . . Melee . | . . . . Ramming 16 | . 6 . 10 Kinetic . | . . . . Thermal 195 | . 195 . . Explosive . | . . . . Electromagnetic 10 | . 10 . . Impact . | . . . . Slashing . | . . . . Piercing . | . . . . Highest Corruption . | . . . . Average Corruption . | . . . . Corruption Purged . | . . . . Corruption Blocked . | . . . . Overload Shots . | . . . . Overflow Damage . | . . . . Projectiles . | . . . . Explosions . | . . . . Melee . | . . . . Knockbacks . | . . . . Impact . | . . . . Kinetic . | . . . . Secondary . | . . . . Self-Inflicted Damage 7 | . 3 . 4 Shots . | . . . . Rammed 4 | . 1 . 3 Targets Rammed 4 | . 1 . 3 Kicked . | . . . . Crushed . | . . . . Highest Temperature 108 | . 108 . . Average Temperature 50 | . 50 . . Received Heat Transfer 21 | . 15 6 . Siege Activations . | . . . . Martial Activations . | . . . . Shielding Activations . | . . . . Robots Disrupted . | . . . . Combat Hostiles . | . . . . Robots Corrupted . | . . . . Combat Hostiles . | . . . . Parts Fried . | . . . . Impact Corruptions . | . . . . Robots Melted . | . . . . Combat Hostiles . | . . . . Parts Melted . | . . . . Heat Transferred 225 | . 225 . . Parts Sabotaged . | . . . . Parts Stolen . | . . . . Parts Stripped . | . . . . Power Chain Reactions 1 | . 1 . . Alert | -11 -10 -9 -8 ------- Run | Yrd Mat Mat Mat Maximum Alert Level . | . . . . Low Security (%) 100 | 100 100 100 100 Level 1 . | . . . . Level 2 . | . . . . Level 3 . | . . . . Level 4 . | . . . . Level 5 . | . . . . High Security . | . . . . Max Security . | . . . . Peak Influence 153 | . 153 60 10 Initial 55 | . . 55 10 Average 52 | . 84 39 3 Influence Increases 263 | . 233 30 . Destroy 0b10 Robot/C 120 | . 120 . . Destroy Leader 20 | . 20 . . Destroy Structure 3 | . 3 . . Partial Spotted 45 | . 15 30 . Lose Combat Pursuer 75 | . 75 . . Influence Decreases 263 | . 100 138 25 Entered New Map 93 | . . 78 15 Time Decay 170 | . 100 60 10 Squads Dispatched 4 | . 1 1 2 Investigation . | . . . . Extermination . | . . . . Reinforcement 4 | . 1 1 2 Assault . | . . . . Garrison . | . . . . Intercept . | . . . . Searches Triggered . | . . . . Construction Impeded . | . . . . Haulers Reinforced . | . . . . Active Scanning Responses . | . . . . Cargo Convoy Interrupts . | . . . . Stealth | -11 -10 -9 -8 --------- Run | Yrd Mat Mat Mat Distress Signals 3 | . 2 . 1 Communications Jammed . | . . . . Distress Signals . | . . . . Times Spotted 36 | . 17 8 11 Peak Tracking Total 11 | . 5 3 11 Tactical Retreats 4 | . 3 1 . Traps | -11 -10 -9 -8 ------- Run | Yrd Mat Mat Mat Traps Triggered . | . . . . Indirectly . | . . . . Trap Hack Attempts . | . . . . Triggered . | . . . . Disarmed . | . . . . Reprogrammed . | . . . . Reused . | . . . . Traps Extracted . | . . . . Installed . | . . . . Triggered . | . . . . Machines | -11 -10 -9 -8 ---------- Run | Yrd Mat Mat Mat Machines Disabled . | . . . . Max in Single Turn . | . . . . Machines Repaired . | . . . . Machines Dismantled . | . . . . Machines Sabotaged . | . . . . Overloaded Fab Kills . | . . . . Hacking | -11 -10 -9 -8 --------- Run | Yrd Mat Mat Mat Machines Accessed 3 | . 2 1 . Terminals 3 | . 2 1 . Fabricators . | . . . . Repair Stations . | . . . . Recycling Units . | . . . . Scanalyzers . | . . . . Garrison Access . | . . . . Total Hacks 6 | . 5 1 . Successful 2 | . 2 . . Failed 4 | . 3 1 . Catastrophic 1 | . 1 . . Database Lockouts . | . . . . Manual . | . . . . Terminals 6 | . 5 1 . Fabricators . | . . . . Repair Stations . | . . . . Recycling Units . | . . . . Scanalyzers . | . . . . Garrison Access . | . . . . Terminal Hacks 2 | . 2 . . Emergency Access Points 1 | . 1 . . Alert Level 1 | . 1 . . Fabricator Hacks . | . . . . Repair Station Hacks . | . . . . Recycling Unit Hacks . | . . . . Scanalyzer . | . . . . Garrison Access Hacks . | . . . . Unauthorized Hacks . | . . . . Terminals . | . . . . Fabricators . | . . . . Repair Stations . | . . . . Recycling Units . | . . . . Scanalyzers . | . . . . Garrison Access . | . . . . Data Cores Recovered . | . . . . Used . | . . . . Hacking Detections 2 | . 1 1 . Full Trace Events . | . . . . Feedback Events . | . . . . Feedback Blocked . | . . . . Robot Schematics Acquired . | . . . . Robots Built . | . . . . Authchips . | . . . . Time . | . . . . Total Robot Build Rating . | . . . . Part Schematics Acquired . | . . . . Parts Built . | . . . . Authchips . | . . . . Time . | . . . . Total Part Build Rating . | . . . . Parts Repaired . | . . . . Time . | . . . . Parts Recycled . | . . . . Recycled Matter . | . . . . Retrieved Matter . | . . . . Retrieved Components . | . . . . Parts Scanalyzed . | . . . . Part Schematics Acquired . | . . . . Parts Damaged . | . . . . Bothacking | -11 -10 -9 -8 ------------ Run | Yrd Mat Mat Mat Used RIF Installer . | . . . . Robots Hacked . | . . . . Non-combat . | . . . . Combat . | . . . . Robot Hacks Applied . | . . . . Relay Couplers Released . | . . . . Fabnet Peak Effective % . | . . . . Robots Rewired . | . . . . Allies Hacked . | . . . . Hacks Repelled . | . . . . Allies | -11 -10 -9 -8 -------- Run | Yrd Mat Mat Mat Total Allies . | . . . . Largest Group . | . . . . Highest-Rated Group . | . . . . Highest-Rated Ally . | . . . . Total Orders . | . . . . Ally Attacks . | . . . . Total Damage . | . . . . Kills . | . . . . Allies Corrupted . | . . . . Allies Melted . | . . . . Intel | -11 -10 -9 -8 ------- Run | Yrd Mat Mat Mat Active Infowar (turns) 60 | . 1 7 52 Optics 48 | . . . 48 Terrain 1 | . 1 . . ECM 42 | . . 7 35 Robot Analysis Total . | . . . . Derelict Logs Recovered . | . . . . Drone Launches . | . . . . Drone Recoveries . | . . . . Exploration | -11 -10 -9 -8 ------------- Run | Yrd Mat Mat Mat Turns Passed 507 | 68 252 131 56 Spaces Moved 916 | 49 376 371 120 Core 8 | 5 2 . 1 Treads 3 | . 3 . . Legs 73 | 44 29 . . Wheels . | . . . . Hover . | . . . . Flight 832 | . 342 371 119 Fastest Speed 34 | 50 37 34 34 Average Speed 45 | 112 50 34 40 Slowest Speed 360 | 120 360 34 120 Overloaded Moves . | . . . . Propulsion Burnouts . | . . . . Robots Hopped 6 | . 1 3 2 Potential Cave-ins . | . . . . Cave-ins Triggered . | . . . . Exploration Rate (%) 30 | 4 70 30 16 Regions Visited 3 Branch Regions . Pre-discovered Areas . | . . . . Known Exits Taken . | . . . . Unknown Exits Taken 3 | 1 1 1 . Scrap Searched . | . . . . Spaces Dug . | . . . . Terrain Destroyed 2 | . 2 . . Melee . | . . . . Projectile . | . . . . AOE 2 | . 2 . . Terrain Rammed . | . . . . Walls Destroyed . | . . . . Machines Disabled . | . . . . Actions | -11 -10 -9 -8 --------- Run | Yrd Mat Mat Mat Total 972 | 58 418 372 124 Wait 5 | . 5 . . Move 901 | 48 373 364 116 Hop 6 | . 1 3 2 Pick Up 8 | 4 3 1 . Fast Attach 14 | 6 5 1 2 Attach 5 | . 4 1 . Detach 7 | . 6 . 1 Swap 1 | . 1 . . Drop 8 | . 6 2 . Fire 13 | . 13 . . Melee . | . . . . Ram 4 | . 1 . 3 Kick . | . . . . Crush . | . . . . Escape Stasis . | . . . . Rewire . | . . . . Trap . | . . . . Miscellaneous . | . . . . Route ------- -11/Scrapyard -10/Materials (discovered 2 exits: *Mat / [*Min]) -9/Materials (discovered 3 exits: [*Mat] / [*Min] / [*Sto]) -8/Materials History --------- Turn | Location | Event 4 | -11/Scrapyard | Discovered new exit (range 14) 69 | -11/Scrapyard | Entered Materials 214 | -10/Materials | Discovered new exit (range 4) 244 | -10/Materials | Discovered new exit (range 13) 321 | -10/Materials | Entered another Materials area 321 | -9/Materials | Evolved 2 slots: Propulsion x1, Utility x1 331 | -9/Materials | Discovered new exit (range 6) 398 | -9/Materials | Discovered new exit (range 16) 423 | -9/Materials | Discovered new exit (range 10) 452 | -9/Materials | Entered another Materials area 452 | -8/Materials | Evolved 2 slots: Propulsion x1, Utility x1 508 | -8/Materials | Self-destructed Last Messages --------------- 00463_ Acquired Terrain Scan Processor. 00467_ K-01 Serf collects debris. 00478_ W-25 Informer sends out distress signal. 00478_ O-16 Technician: "IFF HANDSHAKE FAILED. SECURING TERMINAL." 00483_ Flight Unit destroyed. 00495_ K-01 Serf collects debris. 00498_ Flight Unit destroyed. 00500_ K-01 Serf collects debris. 00501_ ALERT: Hostiles spotted, dispatching reinforcements to Terminal M001. 00502_ Slammed into S-10 Pest. 00502_ Destabilizing: Core damaged (-16). 00502_ ALERT: Hostiles spotted, dispatching reinforcements to Terminal M010. 00503_ Lgt. Ion Engine destroyed. 00503_ Slammed into S-10 Pest. 00504_ Visual Processing Unit broken. 00504_ Destabilizing: Short circuit. 00507_ Flight Unit destroyed. Map ----- +----------------------------------------------------+ | ?????????????????????????????????????### ### | | ???????????????????????????????????????# #?? | | ???????????????????????????????????????# #?? | | ???????????????????????????????????????####### #?? | | ?????????????????????????????????????????????# #?? | | ?????????????????????????????????????????????# #?? | | ?????????????????????????????????????????????# #?? | | ?????????????????????????????????????????????# #?? | | ?????????????????????????????????????######??# #?? | | ?????????????????????????????????????# #??# #?? | | ?????????????????????????????????????# [!!#??# ### | | ?????????????????????????????????????# !! #??# | | ?????????????????????????????????????# !! #??# ### | | ???????????????????????????########### ####+### | | ???????????????????????????# """"" #= ## | | ???????????????????????????# ""T"" # ## """ | | ???????????????????????????? # [ ## """ | | ?????????????????????????????? ??# ?# """ | | ??????????##########+###########+######+#### | | ???????? # """ | | ???????? / """ | | ???????? gss ^ # """ | | ????????????????### ###s########+####### # | | ??????????????????????# ss ## #?# # """ | | ??????????????????????# s"""## """ #?# # """ | | ??????????????????????# @ R"## """ #?# # """ | | ??????????????????????# """## """ ### # | | ??????????????????????# ## + ####### | | ??????????????????????# """ ## """ #####?????? | | ??????????????????????# """ ## """ #?????????? | | ??????????????????????# """ ## """ #?????????? | | ??????????????????????#[ ## #?????????? | | ???????????????????????######?##########?????????? | | | | | | | | | | | | | | | | | | | | | | | | | | | | | | | | | | | +----------------------------------------------------+ Best States ------------- Heat Dissipation 31 Energy Generation 10 Energy Capacity 250 Matter Stores 300 Matter Capacity 300 Sight Range 18 Terrain Scan Density 85 ECM Strength 1 Evasion (%) 63 Recoil Reduction 2 Item Schematics ----------------- None Robot Schematics ------------------ None Fabricated ------------ Nothing Repaired ---------- Nothing Alien Tech Used ----------------- None Achievements -------------- None Challenges ------------ None Game ------ Seed PhasingChromionInitializer Manual? 0 Play Time 00:11:27 Cumulative 7.0 hours Start 2025.06.09 @ 21:42:25 End 2025.06.09 @ 21:52:18 Sessions 1 Manual Loads 0 Difficulty Rogue Special Mode None Game No. 19 Rogue 19 Adventurer 0 Explorer 0 Win Type - Total 0 Types 0/0/0/0/0/0/0/0/0/0 Lore% 4 Gallery% 12 Achievement% 16 Wizard Run 0 Options --------- Layout 1 ASCII 0 Keyboard 0 Movement Mouse Keybinds 0 Fullscreen 2 Font 24/Smallcaps Map View 50x35 Zoom Use 0% Tactical HUD 1 Map Filters NONE Filters NONE Steam 1 RUN: 6549da08-1bf0-4ff2-bf6b-b39e4254487c